lending/lending_fUSD_20250425
["ID","MTS","AMOUNT","RATE_DAILY","PERIOD"]
[358999101,1745615475048,-591.86,0.00027945,2]
[358999102,1745615475059,-721.69,0.00027945,2]
[358999103,1745615475070,-505.4,0.00027945,2]
[358999104,1745615475081,-500.0,0.00027945,2]
[358999105,1745615475094,-3397.95,0.00027945,2]
[358999106,1745615475108,-500.0,0.00027945,2]
[358999107,1745615475119,-938.73,0.00027945,2]
[358999108,1745615475130,-941.68,0.00027945,2]
[358999109,1745615475141,-500.0,0.00027945,2]
[358999110,1745615475152,-500.0,0.00027945,2]
[358999111,1745615475163,-500.0,0.00027945,2]
[358999112,1745615475174,-873.68,0.00027945,2]
[358999113,1745615475185,-500.0,0.00027945,2]
[358999114,1745615475207,-500.0,0.00027945,2]
[358999115,1745615475222,-500.0,0.00027945,2]
[358999116,1745615475235,-314835.52,0.00027945,2]
[358999117,1745615475246,-151.0,0.00027945,7]
[358999118,1745615475259,-970.24,0.00027945,2]
[358999119,1745615475271,-841.29,0.00027945,2]
[358999120,1745615475282,-500.0,0.00027945,2]
[358999121,1745615475293,-1066.56,0.00027945,2]
[358999122,1745615475304,-1169.39,0.00027945,2]
[358999123,1745615475317,-500.0,0.00027945,2]
[358999124,1745615475328,-790.4,0.00027945,2]
[358999125,1745615475340,-500.0,0.00027945,2]
[358999126,1745615475352,-756.31,0.00027945,2]
[358999127,1745615475363,-500.0,0.00027945,2]
[358999128,1745615475374,-500.0,0.00027945,2]
[358999129,1745615475385,-798.76,0.00027945,2]
[358999130,1745615475395,-515.44,0.00027945,2]
[358999131,1745615475406,-500.0,0.00027945,2]
[358999132,1745615475417,-500.0,0.00027945,2]
[358999133,1745615475429,-1092.73,0.00027945,2]
[358999134,1745615475439,-500.0,0.00027945,2]
[358999135,1745615475451,-500.0,0.00027945,2]
[358999136,1745615475462,-1023.78,0.00027945,2]
[358999137,1745615475472,-674.79,0.00027945,2]
[358999138,1745615475483,-500.0,0.00027945,2]
[358999139,1745615475494,-870.21,0.00027945,2]
[358999140,1745615475505,-500.0,0.00027945,2]
[358999141,1745615475516,-500.0,0.00027945,2]
[358999142,1745615475527,-500.0,0.00027945,2]
[358999143,1745615475538,-500.0,0.00027945,2]
[358999144,1745615475548,-500.0,0.00027945,2]
[358999145,1745615475559,-1668.41,0.00027945,2]
[358999146,1745615475570,-762.53,0.00027945,2]
[358999147,1745615475580,-500.0,0.00027945,2]
[358999148,1745615475591,-977.55,0.00027945,2]
[358999149,1745615475601,-938.57,0.00027945,2]
[358999150,1745615475612,-1031.27,0.00027945,2]
[358999151,1745615475623,-718.96,0.00027945,2]
[358999152,1745615475633,-500.0,0.00027945,2]
[358999153,1745615475644,-500.0,0.00027945,2]
[358999154,1745615475654,-500.0,0.00027945,2]
[358999155,1745615475665,-1096.7,0.00027945,2]
[358999156,1745615475675,-500.0,0.00027945,2]
[358999157,1745615475689,-500.0,0.00027945,2]
[358999158,1745615475699,-500.0,0.00027945,2]
[358999159,1745615475709,-1207.6,0.00027945,2]
[358999160,1745615475721,-1808.76,0.00027945,2]
[358999161,1745615475731,-855.78,0.00027945,2]
[358999162,1745615475746,-652.17,0.00027945,2]
[358999163,1745615475757,-500.0,0.00027945,2]
[358999164,1745615475768,-749.36,0.00027945,2]
[358999165,1745615475779,-988.55,0.00027945,2]
[358999166,1745615475790,-500.0,0.00027945,2]
[358999167,1745615475801,-500.0,0.00027945,2]
[358999168,1745615475814,-983.88,0.00027945,2]
[358999169,1745615475825,-867.15,0.00027945,2]
[358999170,1745615475837,-578.01,0.00027945,2]
[358999171,1745615475850,-500.0,0.00027945,2]
[358999172,1745615475860,-500.0,0.00027945,2]
[358999173,1745615475871,-500.0,0.00027945,2]
[358999174,1745615475882,-716.61,0.00027945,2]
[358999175,1745615475892,-151.0,0.00027945,7]
[358999176,1745615475903,-268.52081822,0.00027945,2]
[358999177,1745615475913,-1048.82,0.00027945,2]
[358999178,1745615475924,-670.04,0.00027945,2]
[358999179,1745615475935,-500.0,0.00027945,2]
[358999180,1745615475945,-1039.11,0.00027945,2]
[358999181,1745615475956,-923.87,0.00027945,2]
[358999182,1745615475966,-500.0,0.00027945,2]
[358999183,1745615475977,-500.0,0.00027945,2]
[358999184,1745615475987,-500.0,0.00027945,2]
[358999185,1745615475998,-500.0,0.00027945,2]
[358999186,1745615476009,-500.0,0.00027945,2]
[358999187,1745615476021,-500.0,0.00027945,2]
[358999188,1745615476031,-1670.34,0.00027945,2]
[358999189,1745615476042,-218.197775,0.00027945,7]
[358999190,1745615476053,-792.97,0.00027945,2]
[358999191,1745615476063,-500.0,0.00027945,2]
[358999192,1745615476073,-584.22,0.00027945,2]
[358999193,1745615476084,-890.94,0.00027945,2]
[358999194,1745615476095,-571.7,0.00027945,2]
[358999195,1745615476105,-656.7,0.00027945,2]
[358999196,1745615476115,-2587.83,0.00027945,2]
[358999197,1745615476126,-500.0,0.00027945,2]
[358999198,1745615476137,-519.44,0.00027945,2]
[358999199,1745615476147,-500.0,0.00027945,2]
[358999200,1745615476157,-707.83,0.00027945,2]
[358999201,1745615476167,-984.95,0.00027945,2]
[358999202,1745615476179,-151.0,0.00027945,7]
[358999203,1745615476189,-601.13,0.00027945,2]
[358999204,1745615476200,-1081.72,0.00027945,2]
[358999205,1745615476210,-1671.87,0.00027945,2]
[358999206,1745615476221,-500.0,0.00027945,2]
[358999207,1745615476232,-727.82,0.00027945,2]
[358999208,1745615476243,-500.0,0.00027945,2]
[358999209,1745615476253,-583.81,0.00027945,2]
[358999210,1745615476265,-1067.28,0.00027945,2]
[358999211,1745615476277,-589.91,0.00027945,2]
[358999212,1745615476288,-500.0,0.00027945,2]
[358999213,1745615476299,-500.0,0.00027945,2]
[358999214,1745615476310,-500.0,0.00027945,2]
[358999215,1745615476320,-646.07,0.00027945,2]
[358999216,1745615476331,-1036.4,0.00027945,2]
[358999217,1745615476341,-500.0,0.00027945,2]
[358999218,1745615476352,-500.0,0.00027945,2]
[358999219,1745615476362,-500.0,0.00027945,2]
[358999220,1745615476373,-990.87,0.00027945,2]
[358999221,1745615476383,-821.76,0.00027945,2]
[358999222,1745615476393,-500.0,0.00027945,2]
[358999223,1745615476403,-517.0,0.00027945,2]
[358999224,1745615476414,-4034.80401395,0.00027969,7]
[358999225,1745615476425,-150.0,0.00027973,5]
[358999226,1745615476435,-1000.0,0.00028,2]
[358999227,1745615476446,-207.0,0.0002808,2]
[358999228,1745615476456,-151.0,0.00028174,2]
[358999229,1745615476467,-1000.0,0.00028193,2]
[358999230,1745615476478,-1000.0,0.000282,2]
[358999231,1745615476488,-500.0,0.00028218,2]
[358999232,1745615476498,-500.0,0.00028218,2]
[358999233,1745615476509,-500.0,0.00028218,2]
[358999234,1745615476519,-500.0,0.00028218,2]
[358999235,1745615476530,-300.0,0.00028218,10]
[358999236,1745615476540,-290.06658599,0.00028218,10]
[358999237,1745615476550,-150.0,0.00028218,2]
[358999238,1745615476561,-196.40495196,0.00028219,2]
[358999239,1745615476571,-151.0,0.00028219,7]
[358999240,1745615476581,-151.0,0.00028219,7]
[358999241,1745615476591,-151.0,0.00028219,7]
[358999242,1745615476601,-152.434156,0.00028219,7]
[358999243,1745615476612,-517.24453531,0.00028219,2]
[358999244,1745615476622,-151.0,0.00028219,7]
[358999245,1745615476633,-500.0,0.00028219,2]
[358999246,1745615476643,-151.0,0.00028219,7]
[358999247,1745615476653,-500.0,0.00028219,2]
[358999248,1745615476664,-151.0,0.00028219,7]
[358999249,1745615476674,-151.0,0.00028219,7]
[358999250,1745615476684,-500.0,0.00028219,2]
[358999251,1745615476695,-151.0,0.00028219,7]
[358999252,1745615476705,-150.416162,0.00028219,2]
[358999253,1745615476716,-500.0,0.00028219,2]
[358999254,1745615476726,-500.0,0.00028219,2]
[358999255,1745615476736,-500.0,0.00028219,2]
[358999256,1745615476747,-500.0,0.00028219,2]
[358999257,1745615476757,-151.0,0.00028219,7]
[358999258,1745615476770,-1086.766897,0.00028219,2]
[358999259,1745615476780,-500.0,0.00028219,2]
[358999260,1745615476790,-1096.657166,0.00028219,2]
[358999261,1745615476800,-500.0,0.00028219,2]
[358999262,1745615476811,-500.0,0.00028219,2]
[358999263,1745615476821,-151.0,0.00028219,7]
[358999264,1745615476831,-500.0,0.00028219,2]
[358999265,1745615476841,-569.21,0.00028219,2]
[358999266,1745615476852,-500.0,0.00028219,2]
[358999267,1745615476862,-190.808814,0.00028219,7]
[358999268,1745615476872,-500.0,0.00028219,2]
[358999269,1745615476882,-190.808814,0.00028219,7]
[358999270,1745615476892,-554.12,0.00028219,2]
[358999271,1745615476903,-500.0,0.00028219,2]
[358999272,1745615476913,-781.89,0.00028219,2]
[358999273,1745615476923,-500.0,0.00028219,2]
[358999274,1745615476934,-543.65220556,0.00028219,2]
[358999275,1745615476944,-500.0,0.00028219,2]
[358999276,1745615476955,-544.41,0.00028219,2]
[358999277,1745615476965,-500.0,0.00028219,2]
[358999278,1745615476975,-368.17237141,0.00028219,2]
[358999279,1745615476985,-500.0,0.00028219,2]
[358999280,1745615476996,-500.0,0.00028219,2]
[358999281,1745615477006,-692.61,0.00028219,2]
[358999282,1745615477016,-500.0,0.00028219,2]
[358999283,1745615477027,-500.0,0.00028219,2]
[358999284,1745615477037,-500.0,0.00028219,2]
[358999285,1745615477047,-500.0,0.00028219,2]
[358999286,1745615477057,-500.0,0.00028219,2]
[358999287,1745615477067,-528.92,0.00028219,2]
[358999288,1745615477078,-525.52,0.00028219,2]
[358999289,1745615477088,-500.0,0.00028219,2]
[358999290,1745615477099,-607.1,0.00028219,2]
[358999291,1745615477110,-500.0,0.00028219,2]
[358999292,1745615477120,-309.570209,0.00028219,7]
[358999293,1745615477130,-500.0,0.00028219,2]
[358999294,1745615477141,-500.0,0.00028219,2]
[358999295,1745615477151,-500.0,0.00028219,2]
[358999296,1745615477162,-309.570209,0.00028219,7]
[358999297,1745615477173,-500.0,0.00028219,2]
[358999298,1745615477184,-500.0,0.00028219,2]
[358999299,1745615477195,-851.537639,0.00028219,7]
[358999300,1745615477206,-500.0,0.00028219,2]
[358999301,1745615477218,-500.0,0.00028219,2]
[358999302,1745615477579,-851.537639,0.00028219,7]
[358999303,1745615477593,-151.0,0.00028219,7]
[358999304,1745615477603,-151.0,0.00028219,7]
[358999305,1745615477613,-933.14,0.00028219,2]
[358999306,1745615477623,-545.94,0.00028219,2]
[358999307,1745615477633,-540.79085344,0.00028219,2]
[358999308,1745615477643,-500.0,0.00028219,2]
[358999309,1745615477653,-500.0,0.00028219,2]
[358999310,1745615477662,-151.0,0.00028219,7]
[358999311,1745615477673,-644.26,0.00028219,2]
[358999312,1745615477683,-500.0,0.00028219,2]
[358999313,1745615477694,-500.0,0.00028219,2]
[358999314,1745615477705,-400.19500537,0.00028219,2]
[358999315,1745615477716,-880.24,0.00028219,2]
[358999316,1745615477726,-151.0,0.00028219,7]
[358999317,1745615477736,-500.0,0.00028219,2]
[358999318,1745615477747,-500.0,0.00028219,2]
[358999319,1745615477757,-500.0,0.00028219,2]
[358999320,1745615477769,-500.0,0.00028219,2]
[358999321,1745615477780,-500.0,0.00028219,2]
[358999322,1745615477791,-500.0,0.00028219,2]
[358999323,1745615477800,-500.0,0.00028219,2]
[358999324,1745615477810,-500.0,0.00028219,2]
[358999325,1745615477820,-500.0,0.00028219,2]
[358999326,1745615477830,-957.77,0.00028219,2]
[358999327,1745615477841,-798.42,0.00028219,2]
[358999328,1745615477851,-736.95,0.00028219,2]
[358999329,1745615477861,-500.0,0.00028219,2]
[358999330,1745615477871,-500.0,0.00028219,2]
[358999331,1745615477881,-500.0,0.00028219,2]
[358999332,1745615477891,-500.0,0.00028219,2]
[358999333,1745615477901,-500.0,0.00028219,2]
[358999334,1745615477911,-151.489608,0.00028219,7]
[358999335,1745615477922,-955.14,0.00028219,2]
[358999336,1745615477932,-822.36,0.00028219,2]
[358999337,1745615477944,-632.89,0.00028219,2]
[358999338,1745615477954,-500.0,0.00028219,2]
[358999339,1745615477964,-500.0,0.00028219,2]
[358999340,1745615477974,-500.0,0.00028219,2]
[358999341,1745615477983,-500.0,0.00028219,2]
[358999342,1745615477993,-510.91,0.00028219,2]
[358999343,1745615478003,-500.0,0.00028219,2]
[358999344,1745615478013,-500.0,0.00028219,2]
[358999345,1745615478024,-151.0,0.00028219,7]
[358999346,1745615478034,-500.0,0.00028219,2]
[358999347,1745615478044,-536.63655283,0.00028219,2]
[358999348,1745615478053,-500.0,0.00028219,2]
[358999349,1745615478063,-500.0,0.00028219,2]
[358999350,1745615478074,-500.0,0.00028219,2]
[358999351,1745615478084,-586.75,0.00028219,2]
[358999352,1745615478094,-800.62,0.00028219,2]
[358999353,1745615478104,-500.0,0.00028219,2]
[358999354,1745615478114,-500.0,0.00028219,2]
[358999355,1745615478125,-500.0,0.00028219,2]
[358999356,1745615478135,-500.0,0.00028219,2]
[358999357,1745615478145,-500.0,0.00028219,2]
[358999358,1745615478155,-500.0,0.00028219,2]
[358999359,1745615478166,-500.0,0.00028219,2]
[358999360,1745615478176,-519.77,0.00028219,2]
[358999361,1745615478186,-500.0,0.00028219,2]
[358999362,1745615478196,-537.14,0.00028219,2]
[358999363,1745615478207,-572.41,0.00028219,2]
[358999364,1745615478217,-500.0,0.00028219,2]
[358999365,1745615478227,-921.55,0.00028219,2]
[358999366,1745615478237,-648.52,0.00028219,2]
[358999367,1745615478248,-1081.12,0.00028219,2]
[358999368,1745615478258,-716.66,0.00028219,2]
[358999369,1745615478268,-500.0,0.00028219,2]
[358999370,1745615478279,-500.0,0.00028219,2]
[358999371,1745615478289,-500.0,0.00028219,2]
[358999372,1745615478299,-500.0,0.00028219,2]
[358999373,1745615478309,-500.0,0.00028219,2]
[358999374,1745615478319,-151.0,0.00028219,7]
[358999375,1745615478329,-500.0,0.00028219,2]
[358999376,1745615478339,-500.0,0.00028219,2]
[358999377,1745615478350,-500.0,0.00028219,2]
[358999378,1745615478360,-815.34,0.00028219,2]
[358999379,1745615478369,-500.0,0.00028219,2]
[358999380,1745615478379,-500.0,0.00028219,2]
[358999381,1745615478389,-870.25,0.00028219,2]
[358999382,1745615478399,-500.0,0.00028219,2]
[358999383,1745615478410,-500.0,0.00028219,2]
[358999384,1745615478420,-500.0,0.00028219,2]
[358999385,1745615478430,-500.0,0.00028219,2]
[358999386,1745615478439,-500.0,0.00028219,2]
[358999387,1745615478455,-1065.07,0.00028219,2]
[358999388,1745615478465,-500.0,0.00028219,2]
[358999389,1745615478474,-500.0,0.00028219,2]
[358999390,1745615478484,-566.23,0.00028219,2]
[358999391,1745615478494,-567.5,0.00028219,2]
[358999392,1745615478504,-695.32,0.00028219,2]
[358999393,1745615478514,-500.0,0.00028219,2]
[358999394,1745615478524,-151.0,0.00028219,7]
[358999395,1745615478535,-500.0,0.00028219,2]
[358999396,1745615478545,-153.641164,0.00028219,7]
[358999397,1745615478555,-500.0,0.00028219,2]
[358999398,1745615478566,-500.0,0.00028219,2]
[358999399,1745615478575,-253.014564,0.00028219,7]
[358999400,1745615478586,-895.94,0.00028219,2]
[358999401,1745615478596,-500.0,0.00028219,2]
[358999402,1745615478609,-500.0,0.00028219,2]
[358999403,1745615478619,-500.0,0.00028219,2]
[358999404,1745615478629,-647.26,0.00028219,2]
[358999405,1745615478639,-500.0,0.00028219,2]
[358999406,1745615478649,-5633.68,0.00028219,2]
[358999407,1745615478659,-500.0,0.00028219,2]
[358999408,1745615478669,-342.77874764,0.00028219,2]
[358999409,1745615478679,-500.0,0.00028219,2]
[358999410,1745615478689,-500.0,0.00028219,2]
[358999411,1745615478699,-500.0,0.00028219,2]
[358999412,1745615478710,-806.64,0.00028219,2]
[358999413,1745615478720,-500.0,0.00028219,2]
[358999414,1745615478730,-500.0,0.00028219,2]
[358999415,1745615478742,-151.0,0.00028219,7]
[358999416,1745615478753,-500.0,0.00028219,2]
[358999417,1745615478764,-527.89,0.00028219,2]
[358999418,1745615478774,-152.338148,0.00028219,7]
[358999419,1745615478784,-500.0,0.00028219,2]
[358999420,1745615478795,-500.0,0.00028219,2]
[358999421,1745615478805,-550.25,0.00028219,2]
[358999422,1745615478815,-500.0,0.00028219,2]
[358999423,1745615478825,-500.0,0.00028219,2]
[358999424,1745615478835,-2148.83,0.00028219,2]
[358999425,1745615478845,-850.15,0.00028219,2]
[358999426,1745615478855,-500.0,0.00028219,2]
[358999427,1745615478865,-152.208839,0.00028219,7]
[358999428,1745615478875,-500.0,0.00028219,2]
[358999429,1745615478885,-500.0,0.00028219,2]
[358999430,1745615478896,-547.75,0.00028219,2]
[358999431,1745615478905,-500.0,0.00028219,2]
[358999432,1745615478915,-500.0,0.00028219,2]
[358999433,1745615478925,-151.0,0.00028219,7]
[358999434,1745615478935,-870.36,0.00028219,2]
[358999435,1745615478944,-704.12,0.00028219,2]
[358999436,1745615478954,-500.0,0.00028219,2]
[358999437,1745615478964,-500.0,0.00028219,2]
[358999438,1745615478975,-568.13,0.00028219,2]
[358999439,1745615478985,-844.27,0.00028219,2]
[358999440,1745615478995,-687.1,0.00028219,2]
[358999441,1745615479005,-500.0,0.00028219,2]
[358999442,1745615479015,-500.0,0.00028219,2]
[358999443,1745615479025,-500.0,0.00028219,2]
[358999444,1745615479035,-341.73010918,0.00028219,2]
[358999445,1745615479046,-704.15,0.00028219,2]
[358999446,1745615479055,-500.0,0.00028219,2]
[358999447,1745615479065,-500.0,0.00028219,2]
[358999448,1745615479075,-500.0,0.00028219,2]
[358999449,1745615479085,-1090.37,0.00028219,2]
[358999450,1745615479095,-712.4,0.00028219,2]
[358999451,1745615479105,-500.0,0.00028219,2]
[358999452,1745615479114,-500.0,0.00028219,2]
[358999453,1745615479125,-500.0,0.00028219,2]
[358999454,1745615479134,-500.0,0.00028219,2]
[358999455,1745615479145,-151.0,0.00028219,7]
[358999456,1745615479155,-947.24,0.00028219,2]
[358999457,1745615479165,-498.86933623,0.00028219,2]
[358999458,1745615479175,-697.04,0.00028219,2]
[358999459,1745615479184,-151.0,0.00028219,7]
[358999460,1745615479194,-500.0,0.00028219,2]
[358999461,1745615479205,-500.0,0.00028219,2]
[358999462,1745615479214,-505.48,0.00028219,2]
[358999463,1745615479224,-920.88,0.00028219,2]
[358999464,1745615479234,-974.37,0.00028219,2]
[358999465,1745615479244,-500.0,0.00028219,2]
[358999466,1745615479255,-692.07,0.00028219,2]
[358999467,1745615479265,-254.84142062,0.00028219,2]
[358999468,1745615479275,-732.51,0.00028219,2]
[358999469,1745615479286,-560.3373571,0.00028219,2]
[358999470,1745615479296,-500.0,0.00028219,2]
[358999471,1745615479306,-500.0,0.00028219,2]
[358999472,1745615479316,-151.0,0.00028219,7]
[358999473,1745615479326,-658.97,0.00028219,2]
[358999474,1745615479336,-1018.71,0.00028219,2]
[358999475,1745615479346,-500.0,0.00028219,2]
[358999476,1745615479356,-500.0,0.00028219,2]
[358999477,1745615479366,-500.0,0.00028219,2]
[358999478,1745615479376,-2420.93,0.00028219,2]
[358999479,1745615479385,-500.0,0.00028219,2]
[358999480,1745615479395,-151.0,0.00028219,7]
[358999481,1745615479405,-637.37,0.00028219,2]
[358999482,1745615479416,-500.0,0.00028219,2]
[358999483,1745615479427,-692.8,0.00028219,2]
[358999484,1745615479436,-573.5,0.00028219,2]
[358999485,1745615479446,-500.0,0.00028219,2]
[358999486,1745615479457,-1055.79,0.00028219,2]
[358999487,1745615479468,-549.35,0.00028219,2]
[358999488,1745615479477,-500.0,0.00028219,2]
[358999489,1745615479487,-500.0,0.00028219,2]
[358999490,1745615479497,-500.0,0.00028219,2]
[358999491,1745615479507,-500.0,0.00028219,2]
[358999492,1745615479517,-151.0,0.00028219,7]
[358999493,1745615479526,-743.24,0.00028219,2]
[358999494,1745615479536,-311.97,0.00028219,2]
[358999495,1745615479546,-500.0,0.00028219,2]
[358999496,1745615479556,-151.0,0.00028219,7]
[358999497,1745615479566,-500.0,0.00028219,2]
[358999498,1745615479575,-267.489913,0.00028219,2]
[358999499,1745615479585,-500.0,0.00028219,2]
[358999500,1745615479596,-500.0,0.00028219,2]
[358999501,1745615479606,-500.0,0.00028219,2]
[358999502,1745615479615,-567.96155714,0.00028219,2]
[358999503,1745615479625,-698.98,0.00028219,2]
[358999504,1745615479635,-500.0,0.00028219,2]
[358999505,1745615479645,-267.489913,0.00028219,2]
[358999506,1745615479654,-828.69,0.00028219,2]
[358999507,1745615479664,-691.21,0.00028219,2]
[358999508,1745615479673,-672.07,0.00028219,2]
[358999509,1745615479683,-500.0,0.00028219,2]
[358999510,1745615479693,-520.92,0.00028219,2]
[358999511,1745615479703,-1006.29,0.00028219,2]
[358999512,1745615479714,-272.620426,0.00028219,7]
[358999513,1745615479724,-500.0,0.00028219,2]
[358999514,1745615479733,-500.0,0.00028219,2]
[358999515,1745615479747,-730.48,0.00028219,2]
[358999516,1745615479756,-500.0,0.00028219,2]
[358999517,1745615479766,-1008.41,0.00028219,2]
[358999518,1745615479776,-272.620426,0.00028219,7]
[358999519,1745615479786,-816.66,0.00028219,2]
[358999520,1745615479796,-500.0,0.00028219,2]
[358999521,1745615479806,-500.0,0.00028219,2]
[358999522,1745615479815,-500.0,0.00028219,2]
[358999523,1745615479825,-203.476393,0.00028219,7]
[358999524,1745615479835,-500.0,0.00028219,2]
[358999525,1745615479845,-795.49,0.00028219,2]
[358999526,1745615479854,-1095.56,0.00028219,2]
[358999527,1745615479864,-203.476393,0.00028219,7]
[358999528,1745615479873,-500.0,0.00028219,2]
[358999529,1745615479883,-500.0,0.00028219,2]
[358999530,1745615479893,-500.0,0.00028219,2]
[358999531,1745615479903,-932.81,0.00028219,2]
[358999532,1745615479912,-699.57,0.00028219,2]
[358999533,1745615479922,-500.0,0.00028219,2]
[358999534,1745615479931,-694.23,0.00028219,2]
[358999535,1745615479943,-1005.28,0.00028219,2]
[358999536,1745615479953,-151.0,0.00028219,7]
[358999537,1745615480050,-1062.04,0.00028219,2]
[358999538,1745615480060,-500.0,0.00028219,2]
[358999539,1745615480069,-500.0,0.00028219,2]
[358999540,1745615480079,-500.0,0.00028219,2]
[358999541,1745615480089,-151.0,0.00028219,7]
[358999542,1745615480100,-500.0,0.00028219,2]
[358999543,1745615480109,-500.0,0.00028219,2]
[358999544,1745615480119,-500.0,0.00028219,2]
[358999545,1745615480129,-573.18,0.00028219,2]
[358999546,1745615480139,-534.11317659,0.00028219,2]
[358999547,1745615480149,-500.0,0.00028219,2]
[358999548,1745615480159,-500.0,0.00028219,2]
[358999549,1745615480169,-558.74,0.00028219,2]
[358999550,1745615480179,-500.0,0.00028219,2]
[358999551,1745615480189,-683.23,0.00028219,2]
[358999552,1745615480199,-500.0,0.00028219,2]
[358999553,1745615480208,-500.0,0.00028219,2]
[358999554,1745615480218,-861.36,0.00028219,2]
[358999555,1745615480228,-158.92412787,0.00028219,2]
[358999556,1745615480237,-500.0,0.00028219,2]
[358999557,1745615480247,-500.0,0.00028219,2]
[358999558,1745615480256,-151.0,0.00028219,7]
[358999559,1745615480266,-500.0,0.00028219,2]
[358999560,1745615480276,-727.27,0.00028219,2]
[358999561,1745615480285,-500.0,0.00028219,2]
[358999562,1745615480295,-500.0,0.00028219,2]
[358999563,1745615480305,-589.31,0.00028219,2]
[358999564,1745615480314,-400.62111966,0.00028219,2]
[358999565,1745615480324,-848.22,0.00028219,2]
[358999566,1745615480333,-1368.13,0.00028219,2]
[358999567,1745615480343,-594.94,0.00028219,2]
[358999568,1745615480352,-151.0,0.00028219,7]
[358999569,1745615480362,-700.55,0.00028219,2]
[358999570,1745615480371,-500.0,0.00028219,2]
[358999571,1745615480381,-1117.09,0.00028219,2]
[358999572,1745615480390,-500.0,0.00028219,2]
[358999573,1745615480400,-1328.1,0.00028219,2]
[358999574,1745615480409,-500.0,0.00028219,2]
[358999575,1745615480419,-152.524488,0.00028219,7]
[358999576,1745615480430,-500.0,0.00028219,2]
[358999577,1745615480440,-524.02,0.00028219,2]
[358999578,1745615480450,-500.0,0.00028219,2]
[358999579,1745615480459,-500.0,0.00028219,2]
[358999580,1745615480469,-1667.26,0.00028219,2]
[358999581,1745615480478,-903.49,0.00028219,2]
[358999582,1745615480488,-871.82,0.00028219,2]
[358999583,1745615480497,-500.0,0.00028219,2]
[358999584,1745615480507,-500.0,0.00028219,2]
[358999585,1745615480517,-500.0,0.00028219,2]
[358999586,1745615480527,-691.13,0.00028219,2]
[358999587,1745615480537,-500.0,0.00028219,2]
[358999588,1745615480547,-500.0,0.00028219,2]
[358999589,1745615480558,-505.53,0.00028219,2]
[358999590,1745615480568,-500.0,0.00028219,2]
[358999591,1745615480577,-500.0,0.00028219,2]
[358999592,1745615480587,-565.01,0.00028219,2]
[358999593,1745615480596,-500.0,0.00028219,2]
[358999594,1745615480607,-768.41,0.00028219,2]
[358999595,1745615480617,-500.0,0.00028219,2]
[358999596,1745615480626,-500.0,0.00028219,2]
[358999597,1745615480636,-500.0,0.00028219,2]
[358999598,1745615480645,-500.0,0.00028219,2]
[358999599,1745615480655,-500.0,0.00028219,2]
[358999600,1745615480664,-1675.29,0.00028219,2]